bitfinex/quotes_BTCUSD_20250324
["timestamp","ask_amount","ask_price","bid_price","bid_amount"]
[1742779152273,0.63088782,86010.0,86009.0,0.0001694]
[1742779153258,0.56437195,86010.0,86009.0,0.0001694]
[1742779162658,0.63088782,86010.0,86009.0,0.0001694]
[1742779164633,0.32021495,86010.0,86009.0,0.2327024]
[1742779164908,0.02021495,86010.0,86009.0,0.3216284]
[1742779165084,0.0003386,86027.0,86026.0,0.244111]
[1742779165325,0.0003386,86027.0,86026.0,0.377751]
[1742779165479,0.0003386,86027.0,86026.0,0.13364]
[1742779165662,0.2444476,86027.0,86026.0,0.13364]
[1742779165883,0.2444476,86027.0,86023.0,0.57888]
[1742779165884,0.544117,86024.0,86023.0,0.57888]
[1742779166323,0.544117,86024.0,86009.0,0.0001694]
[1742779166324,0.232528,86011.0,86009.0,0.0001694]
[1742779166523,0.244154,86011.0,86009.0,0.0001694]
[1742779166778,0.011626,86010.0,86009.0,0.0001694]
[1742779167179,0.311626,86010.0,86009.0,0.0001694]
[1742779167421,0.37814187,86010.0,86009.0,0.0011694]
[1742779167803,0.37814187,86010.0,86009.0,0.0001694]
[1742779168180,0.37814187,86010.0,86009.0,0.0011694]
[1742779168591,0.37814187,86010.0,86009.0,0.0001694]
[1742779169440,0.06651587,86010.0,86009.0,0.0001694]
[1742779169638,0.37814187,86010.0,86009.0,0.0001694]
[1742779170792,0.37914187,86010.0,86009.0,0.0001694]
[1742779171159,0.312626,86010.0,86009.0,0.0001694]
[1742779171582,0.33084288,86010.0,86009.0,0.0001694]
[1742779173772,0.01921688,86010.0,86009.0,0.2443284]
[1742779173960,0.001,86010.0,86009.0,0.0001694]
[1742779174155,0.301,86010.0,86009.0,0.0001694]
[1742779174338,0.312626,86010.0,86009.0,0.0001694]
[1742779174872,0.311626,86010.0,86009.0,0.0001694]
[1742779175292,0.311626,86010.0,86009.0,0.0011694]
[1742779176812,0.3298426,86010.0,86009.0,0.0011694]
[1742779180213,0.0182166,86010.0,86009.0,0.0011694]
[1742779181100,0.2507476,86010.0,86009.0,0.0011694]
[1742779181328,0.2623736,86010.0,86009.0,0.0011694]
[1742779183142,0.2507476,86010.0,86009.0,0.0011694]
[1742779184892,0.3182166,86010.0,86009.0,0.0011694]
[1742779185636,0.3182166,86010.0,86009.0,0.2453284]
[1742779185840,0.3182166,86010.0,86009.0,0.3107024]
[1742779186107,0.3182166,86010.0,86009.0,0.0781694]
[1742779186912,0.3185554,86010.0,86009.0,0.0781694]
[1742779187058,0.3185554,86010.0,86009.0,0.0897954]
[1742779189798,0.0185554,86010.0,86009.0,0.0897954]
[1742779191231,0.0185554,86010.0,86009.0,0.0127954]
[1742779192867,0.0185554,86010.0,86009.0,0.0011694]
[1742779193082,0.0301814,86010.0,86009.0,0.0011694]
[1742779193291,0.3301814,86010.0,86009.0,0.0011694]
[1742779194931,0.3301814,86010.0,86009.0,0.0001694]
[1742779196910,0.39669727,86010.0,86009.0,0.0001694]
[1742779197644,0.39769727,86010.0,86009.0,0.0001694]
[1742779198118,0.39669727,86010.0,86009.0,0.0001694]
[1742779198477,0.39869727,86010.0,86009.0,0.0001694]
[1742779200853,0.544211,85991.0,85990.0,0.5788]
[1742779201005,0.544211,85991.0,85990.0,0.57892326]
[1742779201199,0.544211,85991.0,85990.0,0.00012326]
[1742779201734,0.56243063,85991.0,85990.0,0.00012326]
[1742779201937,0.544211,85991.0,85990.0,0.00012326]
[1742779202337,0.544211,85991.0,85990.0,0.00112326]
[1742779202548,0.55599635,85991.0,85990.0,0.00112326]
[1742779205152,0.57421653,85991.0,85990.0,0.00112326]
[1742779205520,0.33000553,85991.0,85990.0,0.00112326]
[1742779205727,0.33000553,85991.0,85990.0,0.01275226]
[1742779206511,0.33000553,85991.0,85990.0,0.00112326]
[1742779207394,0.33000553,85991.0,85990.0,0.14639226]
[1742779207602,0.01822018,85991.0,85990.0,0.41010814]
[1742779208163,0.01822018,85991.0,85990.0,0.43385133]
[1742779208736,0.01822018,85991.0,85990.0,0.43485133]
[1742779208940,0.01822018,85991.0,85990.0,0.43385133]
[1742779209280,0.01822018,85991.0,85990.0,0.43402073]
[1742779210660,0.01822018,85991.0,85990.0,0.43302073]
[1742779210980,0.01822018,85991.0,85990.0,0.43702073]
[1742779211876,0.0003388,86009.0,86008.0,0.327362]
[1742779212080,0.0003388,86009.0,86008.0,0.461002]
[1742779213253,0.01285817,86009.0,86008.0,0.461002]
[1742779213998,0.01385817,86009.0,86008.0,0.461002]
[1742779214543,0.01285817,86009.0,86008.0,0.461002]
[1742779214742,0.01185817,86009.0,86008.0,0.461002]
[1742779215179,0.01185817,86009.0,86008.0,0.48416193]
[1742779216227,0.0003388,86009.0,86008.0,0.65013696]
[1742779216583,0.0003388,86009.0,86008.0,0.66467781]
[1742779217583,0.0003388,86009.0,86008.0,0.66867781]
[1742779218855,0.0003388,86009.0,86008.0,0.67267781]
[1742779222575,0.0003388,86009.0,86008.0,0.67284721]
[1742779225509,0.0003388,86010.0,86009.0,0.14796685]
[1742779225510,6e-07,86010.0,86009.0,0.14796685]
[1742779225715,6e-07,86010.0,86009.0,0.26986639]
[1742779225913,6e-07,86010.0,86009.0,0.27254188]
[1742779226659,6e-07,86010.0,86009.0,0.27854188]
[1742779226861,6e-07,86010.0,86009.0,0.28710043]
[1742779227325,6e-07,86010.0,86009.0,0.26754188]
[1742779227527,6e-07,86010.0,86009.0,0.27354188]
[1742779227726,6e-07,86010.0,86009.0,0.40714188]
[1742779227883,6e-07,86010.0,86009.0,0.41314188]
[1742779233407,6e-07,86010.0,86009.0,0.29130188]
[1742779233838,6e-07,86010.0,86009.0,0.14320103]
[1742779234045,6e-07,86010.0,86009.0,0.157186]
[1742779235249,6e-07,86010.0,86009.0,0.151186]
[1742779235633,6e-07,86010.0,86009.0,0.150186]
[1742779236045,6e-07,86010.0,86009.0,0.156186]
[1742779242696,0.2441576,86010.0,86009.0,0.011]
[1742779242896,0.6210576,86010.0,86009.0,0.011]
[1742779243118,0.6296762,86010.0,86009.0,0.011]
[1742779244117,0.6296762,86010.0,86009.0,0.005]
[1742779244545,0.311626,86009.0,86008.0,0.0001694]
[1742779244975,0.32007783,86009.0,86008.0,0.0001694]
[1742779245778,0.02007783,86009.0,86008.0,0.0001694]
[1742779251542,0.00845183,86009.0,86008.0,0.0001694]
[1742779251901,0.30845183,86009.0,86008.0,0.0001694]
[1742779252103,0.32007783,86009.0,86008.0,0.0001694]
[1742779252329,0.30845183,86009.0,86008.0,0.0001694]
[1742779252730,0.32007783,86009.0,86008.0,0.0001694]
[1742779253840,0.244211,85991.0,85990.0,0.00029266]
[1742779254041,0.669911,85991.0,85990.0,0.00029266]
[1742779254213,0.75463437,85991.0,85990.0,0.00029266]
[1742779255229,0.75463437,85991.0,85990.0,0.00229266]
[1742779255664,0.75463437,85991.0,85990.0,0.00029266]
[1742779256070,0.75663437,85991.0,85990.0,0.00029266]
[1742779256467,0.75463437,85991.0,85990.0,0.00029266]
[1742779256873,0.75763437,85991.0,85990.0,0.00029266]
[1742779257210,0.544225,85986.0,85985.0,0.00012941]
[1742779257420,0.62064313,85986.0,85985.0,0.00012941]
[1742779258496,0.62264313,85986.0,85985.0,0.00012941]
[1742779259320,0.62464313,85986.0,85985.0,0.00012941]
[1742779270541,0.62498193,85986.0,85985.0,0.00012941]
[1742779274513,0.32424747,85986.0,85985.0,0.00012941]
[1742779275056,0.39238593,85986.0,85985.0,0.00012941]
[1742779275867,0.46738593,85986.0,85985.0,0.00012941]
[1742779283046,0.39238593,85986.0,85985.0,0.00012941]
[1742779287595,0.54521447,85986.0,85985.0,0.00012941]
[1742779287795,0.55684347,85986.0,85985.0,0.00012941]
[1742779288164,0.31261847,85986.0,85985.0,0.00012941]
[1742779288356,0.32424747,85986.0,85985.0,0.00012941]
[1742779288568,0.55684347,85986.0,85985.0,0.00012941]
[1742779290875,0.31261847,85986.0,85985.0,0.00012941]
[1742779291204,0.31261847,85986.0,85985.0,0.01175841]
[1742779291355,0.01261847,85986.0,85985.0,0.01175841]
[1742779291553,0.01261847,85986.0,85985.0,0.09405841]
[1742779291717,0.0043388,85986.0,85985.0,0.27457429]
[1742779292162,8e-07,85986.0,85985.0,0.27457429]
[1742779292370,8e-07,85986.0,85985.0,0.31093026]
[1742779292543,8e-07,85986.0,85985.0,0.27657429]
[1742779292751,8e-07,85986.0,85985.0,0.27757429]
[1742779292954,8e-07,85986.0,85985.0,0.27657429]
[1742779293156,8e-07,85986.0,85985.0,0.31288608]
[1742779293593,8e-07,85986.0,85985.0,0.27657429]
[1742779293797,8e-07,85986.0,85985.0,0.27457429]
[1742779294027,8e-07,85986.0,85985.0,0.28601571]
[1742779294223,8e-07,85986.0,85985.0,0.29201571]
[1742779294851,8e-07,85986.0,85985.0,0.28601571]
[1742779295059,8e-07,85986.0,85985.0,0.29201571]
[1742779295708,8e-07,85986.0,85985.0,0.29701571]
[1742779295904,8e-07,85986.0,85985.0,0.29201571]
[1742779296237,8e-07,85986.0,85985.0,0.29801571]
[1742779298565,8e-07,85986.0,85985.0,0.30301571]
[1742779298980,6e-07,86010.0,86009.0,0.011626]
[1742779299177,6e-07,86010.0,86009.0,1.2181397]
[1742779299400,6e-07,86010.0,86009.0,1.21581488]
[1742779300493,6e-07,86010.0,86009.0,1.08225488]
[1742779300695,6e-07,86010.0,86009.0,0.728066]
[1742779301166,6e-07,86010.0,86009.0,0.71644]
[1742779301521,0.00559804,86010.0,86009.0,0.60623065]
[1742779301720,6e-07,86010.0,86009.0,0.71644]
[1742779301966,0.00559804,86010.0,86009.0,0.964599]
[1742779302118,6e-07,86010.0,86009.0,0.964599]
[1742779303029,0.0116266,86010.0,86009.0,0.58288]
[1742779303204,0.0116266,86010.0,86009.0,0.005]
[1742779303400,0.39577667,86010.0,86009.0,0.001]
[1742779303829,0.39577667,86010.0,86009.0,0.003]
[1742779304529,0.39577667,86010.0,86009.0,0.002]
[1742779304728,0.232558,86000.0,85996.0,0.16893237]
[1742779304933,0.244185,86000.0,85996.0,0.15730437]
[1742779305137,0.244185,86000.0,85996.0,0.13356]
[1742779305369,0.00550999,85999.0,85996.0,0.377754]
[1742779305541,0.00550999,85999.0,85997.0,0.011628]
[1742779305750,0.029843,86002.0,85997.0,0.244191]
[1742779305987,0.00552092,85998.0,85997.0,0.244191]
[1742779306134,0.029843,86002.0,85997.0,0.244191]
[1742779306343,0.00554184,85998.0,85997.0,0.244191]
[1742779306558,0.232555,86001.0,85997.0,0.011628]
[1742779306750,0.00554184,85998.0,85996.0,0.378754]
[1742779306956,0.232555,86001.0,85996.0,0.377754]
[1742779307185,0.00548926,85997.0,85996.0,0.377754]
[1742779307384,0.232555,86001.0,85996.0,0.377754]
[1742779307609,0.0054947,85997.0,85996.0,0.40197779]
[1742779307768,0.029843,86002.0,85996.0,0.40197779]
[1742779307967,0.029843,86002.0,85996.0,0.40097779]
[1742779308161,0.00550017,86001.0,85996.0,0.40097779]
[1742779309441,0.00550017,86001.0,85996.0,0.40197779]
[1742779309647,0.00550017,86001.0,85998.0,0.232562]
[1742779310282,0.00550017,86001.0,85998.0,0.24419]
[1742779311526,0.018216,86002.0,85998.0,0.24419]
[1742779312008,0.00550019,86001.0,85998.0,0.24419]
[1742779312667,0.00550019,86001.0,86000.0,0.244185]
[1742779313152,0.018216,86002.0,86000.0,0.011627]
[1742779313547,0.00549476,86001.0,86000.0,0.011627]
[1742779313846,0.00549476,86001.0,85998.0,0.24419]
[1742779315126,0.00549476,86001.0,85999.0,0.244186]
[1742779315503,0.018216,86002.0,85999.0,0.244186]
[1742779315733,0.018216,86002.0,86001.0,0.244182]
[1742779316185,0.018216,86002.0,86001.0,0.319482]
[1742779316382,0.018216,86002.0,86001.0,0.33402285]
[1742779316596,0.018216,86002.0,86001.0,0.45359788]
[1742779317920,0.018216,86002.0,86001.0,0.45559788]
[1742779319145,0.018216,86002.0,86001.0,0.45759788]
[1742779322492,0.018216,86002.0,86001.0,0.323482]
[1742779322926,0.018216,86002.0,86001.0,0.381702]
[1742779323878,0.018216,86002.0,86001.0,0.248182]
[1742779324078,0.018216,86002.0,86001.0,0.381702]
[1742779325763,0.02371868,86002.0,86001.0,0.381702]
[1742779325971,0.02371868,86002.0,86001.0,0.370075]
[1742779326334,0.018216,86002.0,86001.0,0.381702]
[1742779327500,0.018216,86002.0,86001.0,0.13752]
[1742779327679,0.02371868,86002.0,86001.0,0.13752]
[1742779328029,0.02371868,86002.0,86001.0,0.149147]
[1742779328540,0.018216,86002.0,86001.0,0.004]
[1742779328823,0.029843,86002.0,86001.0,0.004]
[1742779328997,0.03534568,86002.0,86001.0,0.004]
[1742779329541,0.48120231,86002.0,86001.0,0.004]
[1742779329704,0.48120231,86002.0,86001.0,0.002]
[1742779329906,0.52780231,86002.0,86001.0,0.002]
[1742779330224,0.323022,85987.0,85986.0,0.0001694]
[1742779330630,0.32832471,85987.0,85986.0,0.0001694]
[1742779331068,0.34654413,85987.0,85986.0,0.0001694]
[1742779331482,0.64654413,85987.0,85986.0,0.0001694]
[1742779332417,0.56774413,85987.0,85986.0,0.0001694]
[1742779332653,0.32352213,85987.0,85986.0,0.0001694]
[1742779332829,0.55611513,85987.0,85986.0,0.0021694]
[1742779333062,0.56774413,85987.0,85986.0,0.0021694]
[1742779333211,0.56774413,85987.0,85986.0,0.0031694]
[1742779334368,0.56774413,85987.0,85986.0,0.0011694]
[1742779334761,0.57920408,85987.0,85986.0,0.0011694]
[1742779335949,0.57920408,85987.0,85986.0,0.0001694]
[1742779336150,0.57920408,85987.0,85986.0,0.0021694]
[1742779337960,0.33498208,85987.0,85986.0,0.0021694]
[1742779338174,0.33498208,85987.0,85986.0,0.2463944]
[1742779338396,0.02352213,85987.0,85986.0,0.2463944]
[1742779338802,0.01821942,85987.0,85986.0,0.2463944]
[1742779339042,0.02966886,85987.0,85986.0,0.2463944]
[1742779339261,0.02966886,85987.0,85986.0,0.0021694]
[1742779339667,0.04632157,85987.0,85986.0,0.0021694]
[1742779339874,0.03469257,85987.0,85986.0,0.0021694]
[1742779340845,0.03469257,85987.0,85986.0,0.0137984]
[1742779341613,0.03469257,85987.0,85986.0,0.0021694]
[1742779341929,0.03469257,85987.0,85986.0,0.0137984]
[1742779342951,0.33469257,85987.0,85986.0,0.0021694]
[1742779344422,0.03469257,85987.0,85986.0,0.0021694]
[1742779344944,0.04632157,85987.0,85986.0,0.0021694]
[1742779346171,0.03503137,85987.0,85986.0,0.0021694]
[1742779346630,0.04666037,85987.0,85986.0,0.0021694]
[1742779355320,0.33503137,85987.0,85986.0,0.0021694]
[1742779355513,0.02358193,85987.0,85986.0,0.1403984]
[1742779355714,9.3e-07,85987.0,85986.0,0.27451428]
[1742779356594,9.3e-07,85987.0,85986.0,0.27251428]
[1742779356799,9.3e-07,85987.0,85986.0,0.27751428]
[1742779356967,9.3e-07,85987.0,85986.0,0.28351428]
[1742779357164,9.3e-07,85987.0,85986.0,0.27851428]
[1742779357365,9.3e-07,85987.0,85986.0,0.27251428]
[1742779357573,9.3e-07,85987.0,85986.0,0.27751428]
[1742779357784,9.3e-07,85987.0,85986.0,0.28351428]
[1742779367003,9.3e-07,85987.0,85986.0,0.29438435]
[1742779367207,9.3e-07,85987.0,85986.0,0.2798435]
[1742779367543,9.3e-07,85987.0,85986.0,0.38056435]
[1742779367847,9.3e-07,85987.0,85986.0,0.24708435]
[1742779368062,9.3e-07,85987.0,85986.0,0.38056435]
[1742779368422,9.3e-07,85987.0,85986.0,0.36969428]
[1742779369976,9.3e-07,85987.0,85986.0,0.38056435]
[1742779371852,8.3e-07,85988.0,85987.0,0.30706285]
[1742779371991,8.3e-07,85988.0,85987.0,0.50653788]
[1742779372348,0.0003388,86002.0,86001.0,0.33862285]
[1742779372503,0.01855441,86002.0,86001.0,1.17043788]
[1742779373628,0.01855441,86002.0,86001.0,1.17243788]
[1742779374353,0.0185954,86002.0,86001.0,1.17243788]
[1742779374558,0.0185954,86002.0,86001.0,1.09253788]
[1742779374918,0.0185954,86002.0,86001.0,1.09453788]
[1742779376521,0.0185954,86002.0,86001.0,1.11820779]
[1742779376710,0.0185954,86002.0,86001.0,1.16650779]
[1742779376907,0.0185954,86002.0,86001.0,1.24640779]
[1742779377311,0.0185954,86002.0,86001.0,1.25727786]
[1742779378029,0.0185954,86002.0,86001.0,1.25527786]
[1742779378436,0.0185954,86002.0,86001.0,1.26027786]
[1742779378850,0.0185954,86002.0,86001.0,1.25527786]
[1742779379146,0.0185954,86002.0,86001.0,1.25327786]
[1742779379357,0.0185954,86002.0,86001.0,1.25927786]
[1742779379558,0.0185954,86002.0,86001.0,1.26427786]
[1742779379775,0.0185954,86002.0,86001.0,1.25927786]
[1742779380184,0.0185954,86002.0,86001.0,1.26527786]
[1742779381383,2e-07,86003.0,86002.0,0.10606785]
[1742779381630,2e-07,86003.0,86002.0,0.22796742]
[1742779382007,2e-07,86003.0,86002.0,0.26416152]
[1742779382208,2e-07,86003.0,86002.0,0.22564288]
[1742779382377,2e-07,86003.0,86002.0,0.22796747]
[1742779382577,2e-07,86003.0,86002.0,0.23396747]
[1742779382818,2e-07,86003.0,86002.0,0.23996747]
[1742779383031,2e-07,86003.0,86002.0,0.22796747]
[1742779384142,2e-07,86003.0,86002.0,0.23396747]
[1742779384522,2e-07,86003.0,86002.0,0.23996747]
[1742779384729,2e-07,86003.0,86002.0,0.23764288]
[1742779387490,2e-07,86003.0,86002.0,0.24264288]
[1742779387697,0.01854974,86027.0,86002.0,0.56107088]
[1742779387698,5.4e-07,86027.0,86002.0,0.56107088]
[1742779387898,0.0003388,86034.0,86033.0,0.244091]
[1742779388103,0.0003388,86034.0,86033.0,1.09028688]
[1742779388307,0.00037986,86034.0,86033.0,1.09028688]
[1742779388677,0.00037986,86034.0,86033.0,1.10849588]
[1742779388866,0.00037986,86034.0,86033.0,1.13176531]
[1742779389476,0.00037986,86034.0,86033.0,1.13476531]
[1742779389678,0.00037986,86034.0,86033.0,1.13176531]
[1742779389999,0.00037986,86034.0,86033.0,1.14376531]
[1742779392211,0.00037986,86034.0,86033.0,1.14372531]
[1742779393369,0.00037986,86034.0,86033.0,1.13772531]
[1742779393660,0.00037986,86034.0,86033.0,1.13672531]
[1742779394381,0.00037986,86034.0,86033.0,1.14072531]
[1742779396119,0.00037986,86034.0,86033.0,1.12251631]
[1742779396343,0.00037986,86034.0,86033.0,1.10797546]
[1742779397102,0.00037986,86034.0,86033.0,1.10397546]
[1742779397690,0.00037986,86034.0,86033.0,1.10297546]
[1742779398223,0.00037986,86034.0,86033.0,1.10797546]
[1742779399633,0.00037986,86034.0,86033.0,0.74414943]
[1742779399835,0.00037986,86034.0,86033.0,0.61078943]
[1742779400035,0.00037986,86034.0,86033.0,0.74414943]
[1742779400612,0.00037986,86034.0,86033.0,0.75577243]
[1742779400905,0.00037986,86034.0,86033.0,0.75177243]
[1742779401855,0.00037986,86034.0,86033.0,0.74677243]
[1742779402174,0.00037986,86034.0,86033.0,0.73714943]
[1742779402402,0.00037986,86034.0,86033.0,0.58052]
[1742779402586,0.01200286,86034.0,86033.0,0.58052]
[1742779402812,0.09280286,86034.0,86033.0,0.58052]
[1742779402986,0.08117986,86034.0,86033.0,0.58052]
[1742779406731,0.38117986,86034.0,86033.0,0.58052]
[1742779407837,0.08117986,86034.0,86033.0,0.58052]
[1742779409224,0.09280286,86034.0,86033.0,0.58052]
[1742779409770,0.15769704,86034.0,86033.0,0.58052]
[1742779410514,0.15769704,86034.0,86033.0,0.57952]
[1742779411322,0.15769704,86034.0,86033.0,0.57852]
[1742779417386,0.011624,86028.0,86027.0,0.0001693]
[1742779418088,0.544106,86028.0,86027.0,0.0001693]
[1742779419364,0.544106,86028.0,86027.0,0.0011693]
[1742779427069,0.544106,86028.0,86027.0,0.0127933]
[1742779427070,0.3,86028.0,86027.0,0.0127933]
[1742779430145,0.3003386,86028.0,86027.0,0.0127933]
[1742779433792,0.0003386,86028.0,86027.0,0.0127933]
[1742779436808,0.0003386,86028.0,86027.0,0.0011693]
[1742779437017,0.0003386,86028.0,86027.0,0.1344893]
[1742779437357,0.0003386,86028.0,86027.0,0.1461133]
[1742779440881,0.0003386,86028.0,86027.0,0.1344893]
[1742779441608,0.0003386,86028.0,86027.0,0.0011693]
[1742779441609,0.2328206,86028.0,86027.0,0.0011693]
[1742779441771,0.0003386,86028.0,86027.0,0.1344893]
[1742779442992,0.3119626,86028.0,86027.0,0.0011693]
[1742779443262,0.3119626,86028.0,86027.0,0.1344493]
[1742779443532,0.3119626,86028.0,86027.0,0.0011693]
[1742779445418,0.3003386,86028.0,86027.0,0.0011693]
[1742779445625,0.0003386,86028.0,86027.0,0.0127933]
[1742779446234,0.0003386,86028.0,86027.0,0.5914333]
[1742779448191,0.0003386,86028.0,86027.0,0.80604918]
[1742779449539,0.0003386,86028.0,86027.0,0.80504918]
[1742779449712,0.0003386,86028.0,86027.0,0.80804918]
[1742779449914,0.0003386,86028.0,86027.0,0.94132918]
[1742779452251,0.0003386,86028.0,86027.0,0.80804918]
[1742779452449,0.0003386,86028.0,86027.0,0.94132918]
[1742779453594,0.0003386,86028.0,86027.0,0.80804918]
[1742779453785,0.0003386,86028.0,86027.0,0.94132918]
[1742779464580,0.0003386,86028.0,86027.0,0.80804918]
[1742779464798,0.0003386,86028.0,86027.0,0.94128918]
[1742779465000,0.0003386,86028.0,86027.0,0.86078918]
[1742779475102,0.0003386,86028.0,86027.0,0.7266733]
[1742779475708,0.0003386,86028.0,86027.0,0.86078918]
[1742779476727,0.0003386,86028.0,86027.0,0.86074918]
[1742779497493,0.0003386,86028.0,86027.0,0.86174918]
[1742779510232,6e-07,86028.0,86027.0,0.98574918]
[1742779510439,2.6e-07,86037.0,86033.0,0.244091]
[1742779510592,2.6e-07,86037.0,86036.0,0.45679888]
[1742779510795,2.6e-07,86037.0,86036.0,0.53856911]
[1742779511425,2.6e-07,86037.0,86036.0,0.67172911]
[1742779511667,2.6e-07,86037.0,86036.0,0.53856911]
[1742779511962,2.6e-07,86037.0,86036.0,0.67172911]
[1742779512135,2.6e-07,86037.0,86036.0,0.53856911]
[1742779512302,2.6e-07,86037.0,86036.0,0.67772911]
[1742779512535,2.6e-07,86037.0,86036.0,0.64135888]
[1742779512735,2.6e-07,86037.0,86036.0,0.64635888]
[1742779513138,2.6e-07,86037.0,86036.0,0.45325803]
[1742779513337,2.6e-07,86037.0,86036.0,0.50781803]
[1742779514002,2.6e-07,86037.0,86036.0,0.255083]
[1742779514222,2.6e-07,86037.0,86036.0,0.249083]
[1742779514467,2.6e-07,86037.0,86036.0,0.960723]
[1742779514645,0.01820713,86037.0,86036.0,0.965723]
[1742779514847,0.01820713,86037.0,86036.0,0.71664]
[1742779515275,0.04138481,86037.0,86036.0,0.008]
[1742779515473,0.11848481,86037.0,86036.0,0.008]
[1742779515677,0.49198998,86037.0,86036.0,0.008]
[1742779515915,0.49198998,86037.0,86036.0,0.003]
[1742779516466,0.544083,86036.0,86035.0,0.10417953]
[1742779516674,0.544102,86029.0,86028.0,0.57852]
[1742779516861,0.591502,86029.0,86028.0,0.57852]
[1742779518293,0.591502,86029.0,86028.0,0.57952]
[1742779523402,0.73383396,86029.0,86028.0,0.57952]
[1742779524183,0.73383396,86029.0,86028.0,0.57852]
[1742779524573,0.73383396,86029.0,86028.0,0.5788588]
[1742779525967,0.4245,86029.0,86028.0,0.5788588]
[1742779526100,0.311623,86029.0,86028.0,0.5788588]
[1742779526299,0.544102,86029.0,86028.0,0.5788588]
[1742779528916,0.60933396,86029.0,86028.0,0.5788588]
[1742779529342,0.60933396,86029.0,85996.0,0.232567]
[1742779529343,0.011626,86012.0,85996.0,0.232567]
[1742779529545,0.011626,86010.0,86009.0,0.57868]
[1742779530093,0.244177,86003.0,86002.0,4.106e-05]
[1742779530290,0.244214,85990.0,85989.0,0.57868]
[1742779530488,0.244214,85990.0,85989.0,0.57872099]
[1742779532203,0.544214,85990.0,85989.0,0.57872099]
[1742779532632,0.56243288,85990.0,85989.0,0.57872099]
[1742779533676,0.56243288,85990.0,85989.0,0.58372099]
[1742779534070,0.56243288,85990.0,85989.0,0.58072099]
[1742779534458,0.56243288,85990.0,85989.0,0.58372099]
[1742779534828,0.56243288,85990.0,85989.0,0.58172099]
[1742779535008,0.56243288,85990.0,85989.0,0.58272099]
[1742779536572,0.56243288,85990.0,85989.0,0.58289039]
[1742779538962,0.63030085,85990.0,85989.0,0.00421039]
[1742779539773,0.63030085,85990.0,85989.0,0.00321039]
[1742779540010,0.63030085,85990.0,85989.0,0.00021039]
[1742779540225,0.63130085,85990.0,85989.0,0.00021039]
[1742779540814,0.544222,85987.0,85986.0,0.0001694]
[1742779541007,0.61229284,85987.0,85986.0,0.0001694]
[1742779541832,0.69349284,85987.0,85986.0,0.0001694]
[1742779542871,0.69349284,85987.0,85985.0,8.1e-07]
[1742779542872,0.311629,85986.0,85985.0,8.1e-07]
[1742779543100,0.37973365,85986.0,85985.0,8.1e-07]
[1742779543613,0.42723365,85986.0,85985.0,8.1e-07]
[1742779544191,0.45936199,85986.0,85985.0,8.1e-07]
[1742779544391,0.42923365,85986.0,85985.0,8.1e-07]
[1742779544691,0.43523365,85986.0,85985.0,8.1e-07]
[1742779546015,0.45345608,85986.0,85985.0,8.1e-07]
[1742779547626,0.40595608,85986.0,85985.0,8.1e-07]
[1742779549195,0.40395608,85986.0,85985.0,8.1e-07]
[1742779549584,0.09995608,85986.0,85985.0,8.1e-07]
[1742779549924,0.10495608,85986.0,85985.0,8.1e-07]
[1742779553551,0.40495608,85986.0,85985.0,8.1e-07]
[1742779556421,0.40995608,85986.0,85985.0,8.1e-07]
[1742779556641,0.40995608,85986.0,85970.0,0.0001692]
[1742779556642,0.544267,85971.0,85970.0,0.0001692]
[1742779556868,0.61342004,85971.0,85970.0,0.00057981]
[1742779558058,0.61542004,85971.0,85970.0,0.00057981]
[1742779559029,0.61642004,85971.0,85970.0,0.00057981]
[1742779559347,0.61542004,85971.0,85970.0,0.00057981]
[1742779559551,0.61342004,85971.0,85970.0,0.00057981]
[1742779559754,0.64536277,85971.0,85970.0,0.00057981]
[1742779559958,0.64836277,85971.0,85970.0,0.00057981]
[1742779560164,0.64536277,85971.0,85970.0,0.00057981]
[1742779560403,0.64836277,85971.0,85970.0,0.00057981]
[1742779562424,0.65336277,85971.0,85970.0,0.00057981]
[1742779563228,0.544307,85957.0,85956.0,0.57892]
[1742779563411,0.61440731,85957.0,85956.0,0.57892]
[1742779564057,0.544319,85953.0,85952.0,0.02297626]
[1742779566017,0.544319,85953.0,85952.0,0.02597626]
[1742779567071,0.55309539,85953.0,85952.0,0.02597626]
[1742779570508,0.6234664,85953.0,85952.0,0.02597626]
[1742779571106,0.6234664,85953.0,85952.0,0.003]
[1742779571292,0.311634,85952.0,85941.0,0.02351638]
[1742779571493,0.38207269,85952.0,85941.0,0.02351638]
[1742779572523,0.08207269,85952.0,85941.0,0.02351638]
[1742779573155,0.08307269,85952.0,85941.0,0.02351638]
[1742779573556,0.08207269,85952.0,85941.0,0.02351638]
[1742779573735,0.08407269,85952.0,85941.0,0.0003388]
[1742779574165,0.244364,85937.0,85936.0,0.7062962]
[1742779575318,0.2740172,85937.0,85936.0,0.7062962]
[1742779575498,0.27442725,85937.0,85936.0,0.7062962]
[1742779575701,0.27442725,85937.0,85936.0,0.7092962]
[1742779575854,0.27442725,85937.0,85936.0,0.73317323]
[1742779576662,0.03006325,85937.0,85936.0,0.73317323]
[1742779576880,0.03006325,85937.0,85936.0,1.09420423]
[1742779577103,0.03006325,85937.0,85936.0,1.10584023]
[1742779577298,0.01863935,85937.0,85936.0,1.23995611]
[1742779578086,0.01863935,85937.0,85936.0,1.23695611]
[1742779578494,0.01863935,85937.0,85936.0,1.24095611]
[1742779578918,0.01863935,85937.0,85936.0,1.24295611]
[1742779579625,0.01863935,85937.0,85936.0,0.86447323]
[1742779581227,0.03027535,85937.0,85936.0,0.86447323]
[1742779582057,0.01863935,85937.0,85936.0,0.86447323]
[1742779583150,0.01863935,85937.0,85936.0,0.86247323]
[1742779583620,0.01863935,85937.0,85936.0,0.86047323]
[1742779583914,0.01863935,85937.0,85936.0,0.86347323]
[1742779584845,0.03027535,85937.0,85936.0,0.86364283]
[1742779584998,0.03061455,85937.0,85936.0,0.86364283]
[1742779586060,0.01897855,85937.0,85936.0,0.86364283]
[1742779588640,0.01897855,85937.0,85936.0,0.87527883]
[1742779592882,0.03061455,85937.0,85936.0,0.86364283]
[1742779593225,0.26334255,85937.0,85936.0,0.86364283]
[1742779593807,0.26334255,85937.0,85936.0,0.73534283]
[1742779594615,0.01897855,85937.0,85936.0,0.73534283]
[1742779602158,0.25170655,85937.0,85936.0,0.73534283]
[1742779602371,0.01897855,85937.0,85936.0,0.73534283]
[1742779604876,0.01897855,85937.0,85936.0,0.60214283]
[1742779605083,0.01897855,85937.0,85936.0,0.73530283]
[1742779606032,0.01897855,85937.0,85936.0,0.94921871]
[1742779606233,0.01897855,85937.0,85936.0,1.01075471]
[1742779609319,0.01897855,85937.0,85936.0,1.00575471]
[1742779612804,0.01897855,85937.0,85936.0,0.99121386]
[1742779615561,0.01897855,85937.0,85936.0,0.85805386]
[1742779615742,0.01897855,85937.0,85936.0,0.99117386]
[1742779617833,0.01897855,85937.0,85936.0,0.59714283]
[1742779617968,0.03061455,85937.0,85936.0,0.73026283]